[Event "Amateur Tournament (ATO)"]
[Site "Biel, Switzerland"]
[Date "2026.07.22"]
[Round "8.6"]
[White "Schorno, Wim"]
[Black "Chu, Wa Ching David"]
[Result "0-1"]
[TimeControl "90+30+30sec/move"]
[WhiteTitle "-"]
[BlackTitle "-"]
[WhiteFideId "1359606"]
[BlackFideId "6013180"]
[WhiteElo "1860"]
[BlackElo "1694"]

1. e4 {[%clk 01:30:54]} {[%emt 00:00:05]} c5 {[%clk 01:30:13]} {[%emt
00:00:45]} 2. Nf3 {[%clk 01:30:30]} {[%emt 00:00:57]} d6 {[%clk 01:30:37]}
{[%emt 00:00:05]} 3. d4 {[%clk 01:30:40]} {[%emt 00:00:23]} cxd4 {[%clk
01:31:00]} {[%emt 00:00:05]} 4. Nxd4 {[%clk 01:31:02]} {[%emt 00:00:08]} Nf6
{[%clk 01:31:14]} {[%emt 00:00:15]} 5. Nc3 {[%clk 01:31:18]} {[%emt 00:00:15]}
g6 {[%clk 01:31:30]} {[%emt 00:00:14]} 6. f4 {[%clk 01:31:22]} {[%emt
00:00:25]} Nc6 {[%clk 01:31:48]} {[%emt 00:00:13]} 7. Nf3 {[%clk 01:31:13]}
{[%emt 00:00:39]} Bg7 {[%clk 01:31:27]} {[%emt 00:00:50]} 8. Bd3 {[%clk
01:31:32]} {[%emt 00:00:12]} O-O {[%clk 01:31:36]} {[%emt 00:00:19]} 9. O-O
{[%clk 01:31:55]} {[%emt 00:00:09]} Qb6+ {[%clk 01:29:58]} {[%emt 00:02:07]} 10.
Kh1 {[%clk 01:32:10]} {[%emt 00:00:15]} Bg4 {[%clk 01:22:46]} {[%emt 00:07:42]}
11. Qe1 {[%clk 01:31:49]} {[%emt 00:00:51]} Bxf3 {[%clk 01:22:10]} {[%emt
00:01:07]} 12. Rxf3 {[%clk 01:32:03]} {[%emt 00:00:16]} Rad8 {[%clk 01:18:46]}
{[%emt 00:03:54]} 13. a3 {[%clk 01:28:25]} {[%emt 00:04:08]} Qc7 {[%clk
01:15:23]} {[%emt 00:03:53]} 14. Qh4 {[%clk 01:22:35]} {[%emt 00:06:20]} h5
{[%clk 01:09:54]} {[%emt 00:05:59]} 15. Bd2 {[%clk 01:18:16]} {[%emt 00:04:49]}
Nd4 {[%clk 01:05:21]} {[%emt 00:05:03]} 16. Rff1 {[%clk 01:16:59]} {[%emt
00:01:47]} e6 {[%clk 00:48:11]} {[%emt 00:17:41]} 17. f5 {[%clk 01:08:00]}
{[%emt 00:09:28]} Rc8 {[%clk 00:33:42]} {[%emt 00:15:00]} 18. fxg6 {[%clk
01:00:56]} {[%emt 00:07:34]} fxg6 {[%clk 00:34:05]} {[%emt 00:00:07]} 19. e5
{[%clk 00:59:06]} {[%emt 00:02:19]} dxe5 {[%clk 00:34:26]} {[%emt 00:00:10]} 20.
Bxg6 {[%clk 00:58:53]} {[%emt 00:00:42]} Nf5 {[%clk 00:33:22]} {[%emt
00:01:34]} 21. Bxf5 {[%clk 00:57:43]} {[%emt 00:01:40]} exf5 {[%clk 00:33:48]}
{[%emt 00:00:04]} 22. Rxf5 {[%clk 00:54:01]} {[%emt 00:04:12]} Qd7 {[%clk
00:31:59]} {[%emt 00:02:20]} 23. Rf2 {[%clk 00:49:41]} {[%emt 00:04:49]} Ng4
{[%clk 00:31:31]} {[%emt 00:00:59]} 24. Re2 {[%clk 00:47:25]} {[%emt 00:02:45]}
Qd4 {[%clk 00:31:27]} {[%emt 00:00:35]} 25. Qxh5 {[%clk 00:26:41]} {[%emt
00:21:13]} Nf2+ {[%clk 00:30:00]} {[%emt 00:01:57]} 26. Rxf2 {[%clk 00:20:00]}
{[%emt 00:07:11]} Qxf2 {[%clk 00:30:11]} {[%emt 00:00:19]} 27. Qd1 {[%clk
00:16:57]} {[%emt 00:03:33]} Rc4 {[%clk 00:20:38]} {[%emt 00:10:03]} 28. Qe1
{[%clk 00:14:54]} {[%emt 00:02:32]} e4 {[%clk 00:18:24]} {[%emt 00:02:45]} 29.
h3 {[%clk 00:08:46]} {[%emt 00:06:38]} e3 {[%clk 00:10:39]} {[%emt 00:08:15]}
30. Qxe3 {[%clk 00:07:46]} {[%emt 00:01:30]} Qxe3 {[%clk 00:10:21]} {[%emt
00:00:49]} 31. Bxe3 {[%clk 00:08:09]} {[%emt 00:00:06]} Bxc3 {[%clk 00:10:26]}
{[%emt 00:00:25]} 32. bxc3 {[%clk 00:08:31]} {[%emt 00:00:08]} Rxc3 {[%clk
00:10:00]} {[%emt 00:00:56]} 33. Bxa7 {[%clk 00:08:23]} {[%emt 00:00:38]} Rxc2
{[%clk 00:09:16]} {[%emt 00:01:15]} 34. Rb1 {[%clk 00:04:36]} {[%emt 00:04:16]}
Rf7 {[%clk 00:09:31]} {[%emt 00:00:15]} 35. Rb3 {[%clk 00:03:20]} {[%emt
00:01:46]} Rg7 {[%clk 00:09:24]} {[%emt 00:00:38]} 36. g4 {[%clk 00:02:44]}
{[%emt 00:01:05]} Rd7 {[%clk 00:09:41]} {[%emt 00:00:13]} 37. Rg3 {[%clk
00:02:16]} {[%emt 00:00:58]} Rd1+ {[%clk 00:09:32]} {[%emt 00:00:39]} 38. Rg1
{[%clk 00:02:35]} {[%emt 00:00:11]} Rd3 {[%clk 00:09:57]} {[%emt 00:00:05]} 39.
Rg2 {[%clk 00:01:46]} {[%emt 00:01:19]} Rxh3+ {[%clk 00:09:54]} {[%emt
00:00:33]} 40. Kg1 {[%clk 00:02:08]} {[%emt 00:00:08]} Rxg2+ {[%clk 00:10:18]}
{[%emt 00:00:07]} 41. Kxg2 {[%clk 00:02:11]} {[%emt 00:00:27]} Rxa3 {[%clk
00:10:44]} {[%emt 00:00:03]} 42. Bc5 {[%clk 00:00:56]} {[%emt 00:01:45]} Rc3
{[%clk 00:11:06]} {[%emt 00:00:08]} 43. Bd6 {[%clk 00:30:49]} {[%emt 00:01:06]}
b5 {[%clk 00:41:57]} {[%emt 00:00:11]} 44. Kf2 {[%clk 00:30:44]} {[%emt
00:00:35]} Rc4 {[%clk 00:42:22]} {[%emt 00:00:04]} 45. g5 {[%clk 00:29:00]}
{[%emt 00:02:14]} b4 {[%clk 00:42:33]} {[%emt 00:00:20]} 46. Ke3 {[%clk
00:26:32]} {[%emt 00:02:57]} b3 {[%clk 00:42:55]} {[%emt 00:00:08]} 47. Kd3
{[%clk 00:19:16]} {[%emt 00:07:46]} Rc6 {[%clk 00:43:17]} {[%emt 00:00:09]} 48.
Ba3 {[%clk 00:07:32]} {[%emt 00:12:13]} Kf7 {[%clk 00:43:36]} {[%emt 00:00:12]}
49. Bb2 {[%clk 00:05:33]} {[%emt 00:02:28]} Kg6 {[%clk 00:43:48]} {[%emt
00:00:18]} 50. Bc3 {[%clk 00:02:23]} {[%emt 00:03:41]} Kxg5 {[%clk 00:44:04]}
{[%emt 00:00:15]} 51. Kd2 {[%clk 00:02:44]} {[%emt 00:00:08]} Kf5 {[%clk
00:44:24]} {[%emt 00:00:10]} 52. Kd3 {[%clk 00:01:38]} {[%emt 00:01:36]} Kg4
{[%clk 00:44:12]} {[%emt 00:00:42]} 53. Kd2 {[%clk 00:01:43]} {[%emt 00:00:25]}
Kf4 {[%clk 00:44:32]} {[%emt 00:00:10]} 54. Kd3 {[%clk 00:01:37]} {[%emt
00:00:36]} Kf3 {[%clk 00:44:49]} {[%emt 00:00:12]} 55. Kd2 {[%clk 00:00:44]}
{[%emt 00:01:25]} Ke4 {[%clk 00:45:15]} {[%emt 00:00:03]} 56. Bg7 {[%clk
00:00:54]} {[%emt 00:00:20]} Rc2+ {[%clk 00:45:37]} {[%emt 00:00:08]} 57. Kd1
{[%clk 00:01:03]} {[%emt 00:00:21]} Kd3 {[%clk 00:46:03]} {[%emt 00:00:03]} 0-1

[Event "Amateur Tournament (ATO)"]
[Site "Biel, Switzerland"]
[Date "2026.07.23"]
[Round "9.1"]
[White "Bangerter, Ena"]
[Black "Alexakis, Dimitrios"]
[Result "1/2-1/2"]
[TimeControl "90+30+30sec/move"]
[WhiteTitle "-"]
[BlackTitle "-"]
[WhiteFideId "1344102"]
[BlackFideId "4200527"]
[WhiteElo "1883"]
[BlackElo "1959"]

1. d4 {[%clk 01:30:57]} {[%emt 00:00:03]} Nf6 {[%clk 01:30:43]} {[%emt
00:00:16]} 2. Nf3 {[%clk 01:31:21]} {[%emt 00:00:06]} d5 {[%clk 01:30:47]}
{[%emt 00:00:26]} 3. Bf4 {[%clk 01:31:39]} {[%emt 00:00:12]} c5 {[%clk
01:30:49]} {[%emt 00:00:28]} 4. e3 {[%clk 01:31:49]} {[%emt 00:00:21]} Nc6
{[%clk 01:30:54]} {[%emt 00:00:25]} 5. c3 {[%clk 01:31:37]} {[%emt 00:00:42]}
Qb6 {[%clk 01:29:48]} {[%emt 00:01:34]} 6. Qb3 {[%clk 01:32:00]} {[%emt
00:00:08]} c4 {[%clk 01:29:44]} {[%emt 00:00:34]} 7. Qc2 {[%clk 01:32:23]}
{[%emt 00:00:07]} Bf5 {[%clk 01:26:55]} {[%emt 00:03:19]} 8. Qc1 {[%clk
01:32:41]} {[%emt 00:00:12]} Nh5 {[%clk 01:24:28]} {[%emt 00:02:57]} 9. Bg3
{[%clk 01:31:25]} {[%emt 00:01:45]} Nxg3 {[%clk 01:23:31]} {[%emt 00:01:28]} 10.
hxg3 {[%clk 01:31:46]} {[%emt 00:00:09]} h6 {[%clk 01:22:23]} {[%emt 00:01:38]}
11. Nbd2 {[%clk 01:32:07]} {[%emt 00:00:10]} Qc7 {[%clk 01:21:40]} {[%emt
00:01:13]} 12. Nh4 {[%clk 01:22:51]} {[%emt 00:09:45]} Bh7 {[%clk 01:21:09]}
{[%emt 00:01:01]} 1/2-1/2

[Event "Amateur Tournament (ATO)"]
[Site "Biel, Switzerland"]
[Date "2026.07.23"]
[Round "9.2"]
[White "Jahn, Thomas"]
[Black "Novalic, Miralem"]
[Result "0-1"]
[TimeControl "90+30+30sec/move"]
[WhiteTitle "-"]
[BlackTitle "-"]
[WhiteFideId "34679430"]
[BlackFideId "1317539"]
[WhiteElo "1944"]
[BlackElo "1966"]

1. e4 {[%clk 01:30:57]} {[%emt 00:00:03]} c5 {[%clk 01:30:19]} {[%emt
00:00:41]} 2. Nf3 {[%clk 01:31:21]} {[%emt 00:00:07]} d6 {[%clk 01:30:28]}
{[%emt 00:00:22]} 3. d4 {[%clk 01:31:35]} {[%emt 00:00:15]} cxd4 {[%clk
01:30:52]} {[%emt 00:00:06]} 4. Nxd4 {[%clk 01:31:59]} {[%emt 00:00:06]} Nf6
{[%clk 01:31:17]} {[%emt 00:00:05]} 5. Nc3 {[%clk 01:32:10]} {[%emt 00:00:18]}
g6 {[%clk 01:30:35]} {[%emt 00:01:12]} 6. Be3 {[%clk 01:31:42]} {[%emt
00:00:58]} Bg7 {[%clk 01:30:33]} {[%emt 00:00:33]} 7. f3 {[%clk 01:31:59]}
{[%emt 00:00:13]} h5 {[%clk 01:27:41]} {[%emt 00:03:21]} 8. h4 {[%clk
01:31:00]} {[%emt 00:01:29]} Nc6 {[%clk 01:27:07]} {[%emt 00:01:05]} 9. Bc4
{[%clk 01:30:58]} {[%emt 00:00:31]} a6 {[%clk 01:23:18]} {[%emt 00:04:21]} 10.
Bb3 {[%clk 01:31:22]} {[%emt 00:00:04]} Na5 {[%clk 01:19:11]} {[%emt 00:04:37]}
11. Qd2 {[%clk 01:30:41]} {[%emt 00:01:11]} Qc7 {[%clk 01:18:35]} {[%emt
00:01:07]} 12. O-O-O {[%clk 01:30:46]} {[%emt 00:00:24]} b5 {[%clk 01:17:21]}
{[%emt 00:01:44]} 13. Nd5 {[%clk 01:26:19]} {[%emt 00:04:58]} Nxb3+ {[%clk
01:17:08]} {[%emt 00:02:13]} 14. Nxb3 {[%clk 01:25:09]} {[%emt 00:01:31]} Nxd5
{[%clk 01:18:42]} {[%emt 00:00:55]} 15. exd5 {[%clk 01:24:50]} {[%emt
00:00:49]} Bd7 {[%clk 01:10:52]} {[%emt 00:08:20]} 16. Rhe1 {[%clk 01:23:38]}
{[%emt 00:01:42]} O-O {[%clk 01:08:33]} {[%emt 00:02:49]} 17. Bg5 {[%clk
01:22:04]} {[%emt 00:02:04]} f6 {[%clk 01:07:29]} {[%emt 00:01:34]} 18. Bh6
{[%clk 01:19:59]} {[%emt 00:02:34]} Rf7 {[%clk 01:05:27]} {[%emt 00:02:33]} 19.
Re2 {[%clk 01:15:11]} {[%emt 00:05:18]} Qc4 {[%clk 01:01:12]} {[%emt 00:04:44]}
20. Bxg7 {[%clk 01:12:00]} {[%emt 00:03:42]} Kxg7 {[%clk 01:01:14]} {[%emt
00:00:28]} 21. Re4 {[%clk 01:11:56]} {[%emt 00:00:33]} Qc7 {[%clk 01:00:50]}
{[%emt 00:00:52]} 22. Nd4 {[%clk 01:12:05]} {[%emt 00:00:23]} Qc5 {[%clk
00:56:29]} {[%emt 00:04:51]} 23. g4 {[%clk 01:01:04]} {[%emt 00:11:31]} hxg4
{[%clk 00:53:55]} {[%emt 00:03:05]} 24. fxg4 {[%clk 00:59:40]} {[%emt
00:01:54]} Rh8 {[%clk 00:54:03]} {[%emt 00:00:21]} 25. Nb3 {[%clk 00:55:06]}
{[%emt 00:05:05]} Qc8 {[%clk 00:53:51]} {[%emt 00:00:42]} 26. g5 {[%clk
00:50:16]} {[%emt 00:05:20]} Bf5 {[%clk 00:43:59]} {[%emt 00:10:21]} 27. Rb4
{[%clk 00:42:30]} {[%emt 00:08:16]} fxg5 {[%clk 00:41:28]} {[%emt 00:03:02]} 28.
hxg5 {[%clk 00:42:33]} {[%emt 00:00:27]} Rh5 {[%clk 00:39:28]} {[%emt
00:02:30]} 29. Re1 {[%clk 00:41:29]} {[%emt 00:01:33]} Rxg5 {[%clk 00:37:49]}
{[%emt 00:02:09]} 30. Nd4 {[%clk 00:41:10]} {[%emt 00:00:49]} Rh5 {[%clk
00:35:19]} {[%emt 00:03:01]} 31. Nc6 {[%clk 00:39:29]} {[%emt 00:02:11]} e5
{[%clk 00:26:31]} {[%emt 00:09:18]} 32. dxe6 {[%clk 00:39:33]} {[%emt
00:00:26]} Bxe6 {[%clk 00:25:37]} {[%emt 00:01:24]} 33. Qd4+ {[%clk 00:31:09]}
{[%emt 00:08:54]} Kh7 {[%clk 00:25:42]} {[%emt 00:00:25]} 34. Qxd6 {[%clk
00:25:12]} {[%emt 00:06:27]} Bf5 {[%clk 00:25:48]} {[%emt 00:00:23]} 35. Rd4
{[%clk 00:21:51]} {[%emt 00:03:51]} Qc7 {[%clk 00:21:07]} {[%emt 00:05:11]} 36.
c3 {[%clk 00:15:50]} {[%emt 00:06:32]} Rh2 {[%clk 00:16:30]} {[%emt 00:05:06]}
37. Qc5 {[%clk 00:01:11]} {[%emt 00:15:09]} Rc2+ {[%clk 00:14:46]} {[%emt
00:02:14]} 38. Kd1 {[%clk 00:01:41]} {[%emt 00:00:01]} Qh2 {[%clk 00:14:56]}
{[%emt 00:00:20]} 39. Rd8 {[%clk 00:01:10]} {[%emt 00:01:01]} Rc1+ {[%emt
00:01:23]} 0-1

[Event "Amateur Tournament (ATO)"]
[Site "Biel, Switzerland"]
[Date "2026.07.23"]
[Round "9.3"]
[White "Chu, Wa Ching David"]
[Black "Zhou, Abigail"]
[Result "0-1"]
[TimeControl "90+30+30sec/move"]
[WhiteTitle "-"]
[BlackTitle "-"]
[WhiteFideId "6013180"]
[BlackFideId "39922081"]
[WhiteElo "1694"]
[BlackElo "1831"]

1. d4 {[%clk 01:29:48]} {[%emt 00:00:50]} d5 {[%clk 01:30:58]} {[%emt
00:00:23]} 2. c4 {[%clk 01:30:12]} {[%emt 00:00:06]} e6 {[%clk 01:31:25]}
{[%emt 00:00:04]} 3. Nc3 {[%clk 01:30:35]} {[%emt 00:00:06]} Be7 {[%clk
01:31:50]} {[%emt 00:00:05]} 4. Nf3 {[%clk 01:30:51]} {[%emt 00:00:15]} Nf6
{[%clk 01:32:14]} {[%emt 00:00:07]} 5. Bg5 {[%clk 01:31:14]} {[%emt 00:00:06]}
Nbd7 {[%clk 01:32:37]} {[%emt 00:00:07]} 6. e3 {[%clk 01:31:26]} {[%emt
00:00:16]} O-O {[%clk 01:32:43]} {[%emt 00:00:25]} 7. Rc1 {[%clk 01:31:19]}
{[%emt 00:00:37]} c6 {[%clk 01:30:57]} {[%emt 00:02:17]} 8. Bd3 {[%clk
01:31:13]} {[%emt 00:00:35]} h6 {[%clk 01:28:04]} {[%emt 00:03:23]} 9. Bh4
{[%clk 01:31:23]} {[%emt 00:00:20]} a6 {[%clk 01:21:01]} {[%emt 00:07:35]} 10.
O-O {[%clk 01:30:35]} {[%emt 00:01:16]} dxc4 {[%clk 01:15:35]} {[%emt
00:05:57]} 11. Bxc4 {[%clk 01:30:06]} {[%emt 00:00:58]} b5 {[%clk 01:12:38]}
{[%emt 00:03:28]} 12. Bd3 {[%clk 01:25:45]} {[%emt 00:04:51]} c5 {[%clk
01:00:54]} {[%emt 00:12:14]} 13. Ne5 {[%clk 01:10:10]} {[%emt 00:16:04]} Nxe5
{[%clk 00:49:00]} {[%emt 00:12:24]} 14. dxe5 {[%clk 01:10:27]} {[%emt
00:00:13]} Nd7 {[%clk 00:49:05]} {[%emt 00:00:26]} 15. Bxe7 {[%clk 01:10:07]}
{[%emt 00:00:49]} Qxe7 {[%clk 00:49:33]} {[%emt 00:00:03]} 16. f4 {[%clk
01:07:22]} {[%emt 00:03:15]} Bb7 {[%clk 00:49:02]} {[%emt 00:01:01]} 17. Be4
{[%clk 01:03:13]} {[%emt 00:04:38]} Bxe4 {[%clk 00:45:37]} {[%emt 00:03:55]} 18.
Nxe4 {[%clk 01:03:37]} {[%emt 00:00:05]} Rac8 {[%clk 00:41:38]} {[%emt
00:04:31]} 19. Qd2 {[%clk 00:56:19]} {[%emt 00:07:47]} Rc6 {[%clk 00:32:45]}
{[%emt 00:09:23]} 20. Rfd1 {[%clk 00:55:02]} {[%emt 00:01:46]} Nb6 {[%clk
00:32:14]} {[%emt 00:01:03]} 21. Qe1 {[%clk 00:52:18]} {[%emt 00:03:14]} Nd5
{[%clk 00:29:08]} {[%emt 00:03:36]} 22. Nc3 {[%clk 00:49:10]} {[%emt 00:03:38]}
Nb6 {[%clk 00:27:20]} {[%emt 00:02:18]} 23. Ne4 {[%clk 00:49:12]} {[%emt
00:00:28]} c4 {[%clk 00:26:09]} {[%emt 00:01:42]} 24. Rd6 {[%clk 00:46:36]}
{[%emt 00:03:06]} Rxd6 {[%clk 00:24:23]} {[%emt 00:02:16]} 25. exd6 {[%clk
00:46:23]} {[%emt 00:00:43]} Qa7 {[%clk 00:23:38]} {[%emt 00:01:14]} 26. Nc3
{[%clk 00:30:54]} {[%emt 00:15:59]} Rd8 {[%clk 00:18:22]} {[%emt 00:05:46]} 27.
Qd2 {[%clk 00:26:39]} {[%emt 00:04:45]} Nd5 {[%clk 00:12:58]} {[%emt 00:05:54]}
28. Kh1 {[%clk 00:22:15]} {[%emt 00:04:54]} Qxe3 {[%clk 00:10:19]} {[%emt
00:03:09]} 29. Qxe3 {[%clk 00:19:43]} {[%emt 00:03:02]} Nxe3 {[%clk 00:10:42]}
{[%emt 00:00:07]} 30. Re1 {[%clk 00:19:27]} {[%emt 00:00:46]} Nf5 {[%clk
00:09:42]} {[%emt 00:01:29]} 31. Ne4 {[%clk 00:19:29]} {[%emt 00:00:29]} Kf8
{[%clk 00:09:47]} {[%emt 00:00:26]} 32. Rd1 {[%clk 00:18:46]} {[%emt 00:01:12]}
Ne3 {[%clk 00:08:48]} {[%emt 00:01:29]} 33. Rd2 {[%clk 00:18:43]} {[%emt
00:00:33]} Nd5 {[%clk 00:08:28]} {[%emt 00:00:49]} 34. f5 {[%clk 00:18:19]}
{[%emt 00:00:55]} exf5 {[%clk 00:08:16]} {[%emt 00:00:42]} 35. Ng3 {[%clk
00:18:16]} Ne3 {[%clk 00:08:09]} {[%emt 00:01:10]} 36. Kg1 {[%clk 00:18:12]} g6
{[%clk 00:08:09]} 37. h3 {[%clk 00:18:12]} c3 {[%clk 00:07:53]} {[%emt
00:02:28]} 38. bxc3 {[%clk 00:17:45]} Nc4 {[%clk 00:08:16]} {[%emt 00:00:57]}
39. Re2 {[%clk 00:16:09]} Rxd6 {[%clk 00:08:34]} {[%emt 00:02:16]} 40. Kf2
{[%clk 00:15:46]} Rd3 {[%clk 00:07:40]} {[%emt 00:02:17]} 41. Rc2 {[%clk
00:14:42]} Ne3 {[%clk 00:06:58]} {[%emt 00:02:47]} 42. Ke2 {[%clk 00:12:53]}
Nxc2 {[%clk 00:06:55]} {[%emt 00:02:52]} 43. Kxd3 {[%clk 00:13:20]} Ne1+ {[%clk
00:06:12]} {[%emt 00:01:15]} 44. Kd4 {[%clk 00:13:45]} Nxg2 {[%clk 00:06:30]}
{[%emt 00:00:18]} 45. c4 {[%clk 00:13:46]} bxc4 {[%clk 00:06:40]} {[%emt
00:00:49]} 46. Kxc4 {[%clk 00:14:08]} Ke7 {[%clk 00:05:49]} {[%emt 00:01:30]}
47. Kc5 {[%clk 00:14:26]} Nf4 {[%clk 00:05:25]} {[%emt 00:01:05]} 48. h4 {[%clk
00:14:34]} Kd7 {[%clk 00:05:02]} {[%emt 00:01:15]} 49. Kb6 {[%clk 00:14:53]}
Nd3 {[%clk 00:04:59]} {[%emt 00:00:43]} 50. a4 {[%clk 00:14:55]} Kc8 {[%clk
00:04:15]} {[%emt 00:01:43]} 51. Kxa6 {[%clk 00:15:09]} Kb8 {[%clk 00:04:03]}
{[%emt 00:00:58]} 52. Kb6 {[%clk 00:15:33]} Nb2 {[%clk 00:03:03]} {[%emt
00:01:36]} 53. a5 {[%clk 00:15:29]} Nc4+ {[%clk 00:02:36]} {[%emt 00:01:31]} 54.
Kb5 {[%clk 00:15:49]} Ne3 {[%clk 00:02:24]} {[%emt 00:00:52]} 55. Kc5 {[%clk
00:14:41]} f4 {[%clk 00:01:59]} {[%emt 00:02:33]} 56. Nh1 {[%clk 00:14:42]} g5
{[%clk 00:01:33]} {[%emt 00:01:25]} 57. hxg5 {[%clk 00:14:23]} hxg5 {[%clk
00:01:57]} {[%emt 00:00:55]} 58. Kd4 {[%clk 00:14:12]} {[%emt 00:00:41]} g4
{[%clk 00:01:59]} {[%emt 00:00:28]} 59. Ke4 {[%clk 00:08:26]} {[%emt 00:06:16]}
g3 {[%clk 00:01:59]} 0-1

[Event "Amateur Tournament (ATO)"]
[Site "Biel, Switzerland"]
[Date "2026.07.23"]
[Round "9.4"]
[White "Jud, Marc"]
[Black "Trubini, Timon"]
[Result "1/2-1/2"]
[TimeControl "90+30+30sec/move"]
[WhiteTitle "-"]
[BlackTitle "-"]
[WhiteFideId "1309099"]
[BlackFideId "1347799"]
[WhiteElo "1991"]
[BlackElo "1920"]

1. d4 {[%clk 01:30:58]} Nf6 {[%clk 01:30:56]} {[%emt 00:00:05]} 2. Nf3 {[%clk
01:31:24]} {[%emt 00:00:04]} g6 {[%clk 01:31:21]} {[%emt 00:00:05]} 3. c4
{[%clk 01:31:30]} {[%emt 00:00:24]} Bg7 {[%clk 01:31:48]} {[%emt 00:00:03]} 4.
e3 {[%clk 01:31:48]} {[%emt 00:00:12]} O-O {[%clk 01:32:11]} {[%emt 00:00:06]}
5. Bd3 {[%clk 01:32:12]} {[%emt 00:00:06]} d6 {[%clk 01:31:52]} {[%emt
00:00:50]} 6. O-O {[%clk 01:32:06]} {[%emt 00:00:36]} Nbd7 {[%clk 01:32:19]}
{[%emt 00:00:04]} 7. Nc3 {[%clk 01:31:41]} {[%emt 00:00:54]} e5 {[%clk
01:32:16]} {[%emt 00:00:33]} 8. Bc2 {[%clk 01:27:51]} {[%emt 00:04:21]} Re8
{[%clk 01:29:41]} {[%emt 00:03:04]} 9. dxe5 {[%clk 01:27:07]} {[%emt 00:01:14]}
Nxe5 {[%clk 01:29:16]} {[%emt 00:00:55]} 10. Nxe5 {[%clk 01:23:49]} {[%emt
00:03:48]} Rxe5 {[%clk 01:27:18]} {[%emt 00:02:28]} 11. e4 {[%clk 01:23:38]}
{[%emt 00:00:40]} Re8 {[%clk 01:26:41]} {[%emt 00:01:08]} 12. h3 {[%clk
01:21:13]} {[%emt 00:02:58]} Be6 {[%clk 01:25:37]} {[%emt 00:01:30]} 1/2-1/2

[Event "Amateur Tournament (ATO)"]
[Site "Biel, Switzerland"]
[Date "2026.07.23"]
[Round "9.5"]
[White "Pinelli, Gian"]
[Black "Schneuwly, Achim"]
[Result "0-1"]
[TimeControl "90+30+30sec/move"]
[WhiteTitle "-"]
[BlackTitle "-"]
[WhiteFideId "1348710"]
[BlackFideId "1303252"]
[WhiteElo "1824"]
[BlackElo "1933"]

1. d4 {[%clk 01:30:57]} {[%emt 00:00:02]} c5 {[%clk 01:30:53]} {[%emt
00:00:06]} 2. d5 {[%clk 01:31:24]} {[%emt 00:00:05]} e6 {[%clk 01:31:18]}
{[%emt 00:00:04]} 3. c4 {[%clk 01:31:47]} {[%emt 00:00:07]} exd5 {[%clk
01:31:45]} {[%emt 00:00:03]} 4. cxd5 {[%clk 01:32:07]} {[%emt 00:00:10]} d6
{[%clk 01:32:12]} {[%emt 00:00:03]} 5. Nc3 {[%clk 01:32:26]} {[%emt 00:00:12]}
Ne7 {[%clk 01:32:39]} {[%emt 00:00:03]} 6. e4 {[%clk 01:32:06]} {[%emt
00:00:49]} Ng6 {[%clk 01:33:05]} {[%emt 00:00:04]} 7. h4 {[%clk 01:31:58]}
{[%emt 00:00:38]} Be7 {[%clk 01:32:15]} {[%emt 00:01:20]} 8. Bb5+ {[%clk
01:32:15]} {[%emt 00:00:13]} Bd7 {[%clk 01:32:18]} {[%emt 00:00:26]} 9. h5
{[%clk 01:32:39]} {[%emt 00:00:06]} Ne5 {[%clk 01:30:43]} {[%emt 00:02:05]} 10.
Be2 {[%clk 01:33:03]} {[%emt 00:00:07]} f5 {[%clk 01:21:26]} {[%emt 00:09:46]}
11. f4 {[%clk 01:20:52]} {[%emt 00:12:42]} Nf7 {[%clk 01:17:17]} {[%emt
00:04:38]} 12. Nf3 {[%clk 01:20:39]} {[%emt 00:00:44]} fxe4 {[%clk 01:09:36]}
{[%emt 00:08:11]} 13. Nxe4 {[%clk 01:20:36]} {[%emt 00:00:32]} O-O {[%clk
01:09:55]} {[%emt 00:00:12]} 14. Qb3 {[%clk 01:17:07]} {[%emt 00:03:59]} Na6
{[%clk 01:04:34]} {[%emt 00:05:49]} 15. Bd2 {[%clk 01:15:59]} {[%emt 00:01:40]}
b5 {[%clk 00:56:15]} {[%emt 00:08:48]} 16. Neg5 {[%clk 01:13:36]} {[%emt
00:02:53]} c4 {[%clk 00:55:16]} {[%emt 00:01:31]} 17. Qc2 {[%clk 01:11:13]}
{[%emt 00:02:53]} Nxg5 {[%clk 00:55:15]} {[%emt 00:00:30]} 18. fxg5 {[%clk
01:08:49]} {[%emt 00:02:55]} Bf5 {[%clk 00:53:09]} {[%emt 00:02:35]} 19. Qc3
{[%clk 01:08:17]} {[%emt 00:00:55]} Nc5 {[%clk 00:51:31]} {[%emt 00:02:13]} 20.
h6 {[%clk 01:07:31]} {[%emt 00:01:18]} Rf7 {[%clk 00:50:43]} {[%emt 00:01:16]}
21. hxg7 {[%clk 00:55:37]} {[%emt 00:12:26]} Ne4 {[%clk 00:41:44]} {[%emt
00:09:27]} 22. Qd4 {[%clk 00:46:50]} {[%emt 00:09:19]} Nxd2 {[%clk 00:38:49]}
{[%emt 00:03:24]} 23. Nxd2 {[%clk 00:44:19]} {[%emt 00:03:01]} Bxg5 {[%clk
00:38:21]} {[%emt 00:00:57]} 24. g4 {[%clk 00:37:35]} {[%emt 00:07:16]} Bg6
{[%clk 00:35:57]} {[%emt 00:02:50]} 25. a4 {[%clk 00:37:12]} {[%emt 00:00:57]}
Bf6 {[%clk 00:34:39]} {[%emt 00:01:47]} 26. Qe3 {[%clk 00:32:20]} {[%emt
00:05:23]} Bxb2 {[%clk 00:34:16]} {[%emt 00:00:53]} 27. Ra2 {[%clk 00:32:49]}
c3 {[%clk 00:31:43]} {[%emt 00:03:02]} 28. Nb3 {[%clk 00:33:17]} {[%emt
00:00:03]} Qe7 {[%clk 00:29:26]} {[%emt 00:02:45]} 29. Qe6 {[%clk 00:33:12]}
{[%emt 00:00:37]} Re8 {[%clk 00:24:12]} {[%emt 00:05:41]} 0-1